bitfinex/quotes_BTCUSD_20260310
["timestamp","ask_amount","ask_price","bid_price","bid_amount"]
[1773153264058,0.03,70045.0,70031.0,0.0001342]
[1773153264458,0.03,70045.0,70032.0,0.00148]
[1773153264664,0.03,70045.0,70032.0,0.07287584]
[1773153264665,0.03,70043.0,70032.0,0.07287584]
[1773153265736,0.03,70042.0,70032.0,0.07287584]
[1773153266422,0.02870942,70048.0,70032.0,0.07287584]
[1773153266631,0.03,70047.0,70032.0,0.08404501]
[1773153267040,0.03,70045.0,70032.0,0.08256501]
[1773153267243,0.03,70045.0,70033.0,0.00148]
[1773153267244,0.00022001,70043.0,70033.0,0.00148]
[1773153267448,0.03,70041.0,70033.0,0.07139491]
[1773153267640,0.03,70035.0,70034.0,0.00148]
[1773153267843,0.03,70033.0,70030.0,0.07139593]
[1773153268093,0.03,70033.0,70031.0,0.00148]
[1773153268367,0.04533058,70033.0,70031.0,0.00148]
[1773153268568,0.03,70033.0,70031.0,0.00148]
[1773153268771,0.00022001,70043.0,70032.0,0.07139593]
[1773153269009,0.03022001,70043.0,70033.0,0.00142789]
[1773153269361,0.02870942,70048.0,70032.0,0.07139593]
[1773153269544,0.10008956,70048.0,70032.0,0.07139593]
[1773153269941,0.02870942,70048.0,70032.0,0.07139593]
[1773153270141,0.1427801,70045.0,70032.0,0.07287593]
[1773153270341,0.01533058,70044.0,70032.0,0.07287593]
[1773153270933,0.03,70042.0,70032.0,0.00148]
[1773153271154,0.03,70040.0,70032.0,0.0728756]
[1773153271563,0.03,70038.0,70020.0,0.07152072]
[1773153271685,0.07138472,70043.0,70020.0,0.07152072]
[1773153271686,0.03,70034.0,70021.0,0.00148]
[1773153271887,0.03,70030.0,70021.0,0.00148]
[1773153272898,0.04533058,70028.0,70022.0,0.07288544]
[1773153273099,0.01533058,70040.0,70022.0,0.07288544]
[1773153273322,0.08671894,70040.0,70023.0,0.00142792]
[1773153273520,0.07138836,70040.0,70024.0,0.05962729]
[1773153273734,0.07138836,70040.0,70025.0,0.06105516]
[1773153273942,0.07137565,70052.0,70025.0,0.06105516]
[1773153274261,0.07160764,70050.0,70025.0,0.05962729]
[1773153274487,0.07207931,70049.0,70025.0,0.05962729]
[1773153274606,0.10008914,70048.0,70025.0,0.05962729]
[1773153274813,0.09991151,70048.0,70025.0,0.05962729]
[1773153275125,0.07137281,70055.0,70025.0,0.05962729]
[1773153275126,0.07136643,70061.0,70031.0,0.05962729]
[1773153275483,0.0826338,70057.0,70032.0,0.00148]
[1773153275648,0.0826338,70057.0,70033.0,0.05962729]
[1773153275817,0.00022001,70048.0,70033.0,0.05962729]
[1773153276413,0.03,70046.0,70034.0,0.00148]
[1773153276535,0.03,70044.0,70025.0,0.07163205]
[1773153276733,0.03,70042.0,70026.0,0.00148]
[1773153276941,0.03,70040.0,70025.0,0.07163205]
[1773153277160,0.03,70040.0,70026.0,0.00148]
[1773153277760,0.03,70040.0,70022.0,0.0002]
[1773153278020,0.03,70040.0,70020.0,0.07152083]
[1773153278150,0.03,70040.0,70020.0,0.00011282]
[1773153278348,0.03,70040.0,70020.0,0.07152071]
[1773153278577,0.03,70038.0,70021.0,0.00148]
[1773153278906,0.03,70038.0,70014.0,0.0002]
[1773153279104,0.03,70036.0,70014.0,0.0002]
[1773153279313,0.00148,70035.0,70012.0,0.00562]
[1773153279512,0.00148,70035.0,70007.0,0.0002]
[1773153280564,0.03,70034.0,70007.0,0.0002]
[1773153280759,0.01116917,70035.0,70009.0,0.05962729]
[1773153281001,0.07139389,70034.0,70007.0,0.0716204]
[1773153281264,0.07139389,70034.0,70008.0,0.00041403]
[1773153281466,0.07139389,70034.0,70007.0,0.0716204]
[1773153281670,0.03,70032.0,70007.0,0.0716204]
[1773153281995,0.00148,70031.0,70007.0,0.0716204]
[1773153282545,0.00148,70031.0,70008.0,0.00148]
[1773153282680,0.03,70030.0,70008.0,0.00148]
[1773153282885,0.03,70030.0,70008.0,0.00189395]
[1773153283092,0.03,70028.0,70009.0,0.07141938]
[1773153283650,0.03,70028.0,70010.0,0.06004122]
[1773153284030,0.03,70028.0,70011.0,0.00041392]
[1773153284780,0.03,70028.0,70008.0,0.0002]
[1773153284992,0.04116917,70028.0,70008.0,0.0002]
[1773153285128,0.03,70026.0,70008.0,0.0002]
[1773153285470,0.00148,70025.0,70008.0,0.0002]
[1773153286789,0.03,70023.0,70008.0,0.0002]
[1773153286985,0.03,70023.0,70000.0,0.00191]
[1773153287141,0.03,70021.0,70000.0,0.00043]
[1773153288221,0.04099153,70021.0,70000.0,0.00043]
[1773153288470,0.04099153,70021.0,70000.0,0.07185829]
[1773153288683,0.00148,70020.0,70000.0,0.07185829]
[1773153288889,0.08428683,70019.0,70000.0,0.00043]
[1773153289213,0.03,70017.0,70000.0,0.00043]
[1773153289414,0.0714102,70018.0,69993.0,0.0002]
[1773153289705,0.0714102,70018.0,69994.0,0.00148]
[1773153289922,0.22374565,70018.0,69994.0,0.00148]
[1773153290108,0.22374565,70018.0,69993.0,0.07163559]
[1773153290300,0.01229391,70017.0,69995.0,0.05962729]
[1773153290941,0.01229391,70017.0,69994.0,0.00148]
[1773153290942,0.00148,70016.0,69994.0,0.00148]
[1773153291146,0.03,70014.0,69994.0,0.00148]
[1773153291369,0.10141632,70012.0,69994.0,0.07291444]
[1773153291803,0.10141632,70012.0,69994.0,0.00148]
[1773153291997,0.10141632,70012.0,69998.0,0.0002]
[1773153292206,0.03,70010.0,69998.0,0.0002]
[1773153292404,0.00148,70009.0,69998.0,0.0002]
[1773153293238,0.03,70008.0,69998.0,0.0002]
[1773153293677,0.03,70006.0,69993.0,0.0002]
[1773153293819,0.03,70006.0,69992.0,0.00148]
[1773153294451,0.03,70006.0,69991.0,0.00168]
[1773153294651,0.03,70006.0,69984.0,0.00582]
[1773153294817,0.03,70006.0,69989.0,0.00148]
[1773153295299,0.03,70006.0,69990.0,0.05962729]
[1773153295300,0.00148,70005.0,69990.0,0.05962729]
[1773153295500,0.00017777,70005.0,69990.0,0.05962729]
[1773153295744,0.03,70003.0,69990.0,0.13106559]
[1773153296333,0.03,70003.0,69990.0,0.05962729]
[1773153296538,0.03,70003.0,69984.0,0.0772645]
[1773153296698,0.04063629,70003.0,69984.0,0.0772645]
[1773153296901,0.04063629,70003.0,69984.0,0.00582]
[1773153297693,0.03,70001.0,69984.0,0.00582]
[1773153297892,0.00148,70000.0,69984.0,0.00582]
[1773153298087,0.00017777,69999.0,69985.0,0.05962729]
[1773153298641,0.03,70000.0,69985.0,0.05962729]
[1773153299741,0.07142259,70006.0,69987.0,0.05962729]
[1773153299949,0.16316794,70030.0,69992.0,0.14382012]
[1773153299950,0.07141836,70011.0,69992.0,0.14382012]
[1773153300124,0.07141836,70011.0,69993.0,0.07192237]
[1773153300329,0.07141836,70011.0,69986.0,0.07144286]
[1773153300330,0.00148,70010.0,69986.0,0.07144286]
[1773153300531,0.00148,70010.0,69992.0,0.00148]
[1773153300767,0.03148,70010.0,69991.0,0.00148]
[1773153300943,0.03,70010.0,69992.0,0.05962729]
[1773153301142,0.03,70010.0,69993.0,0.05962729]
[1773153301347,0.03,70010.0,69995.0,0.05962729]
[1773153301550,0.07141059,70018.0,69997.0,0.05962729]
[1773153301748,0.07141012,70019.0,69997.0,0.05962729]
[1773153301749,0.03,70017.0,69999.0,0.05962729]
[1773153302100,0.05458464,70016.0,69997.0,0.07154386]
[1773153302377,0.03148,70015.0,69999.0,0.00148]
[1773153302826,0.03148,70015.0,70000.0,0.00148]
[1773153303626,0.03,70013.0,70001.0,0.07142755]
[1773153304063,0.07128399,70014.0,70001.0,0.07142755]
[1773153304262,0.07128399,70014.0,70000.0,0.00148]
[1773153305356,0.07128399,70014.0,69987.0,0.07144183]
[1773153305558,0.07139666,70014.0,69990.0,0.00148]
[1773153305773,0.03,70011.0,69991.0,0.07143775]
[1773153305972,0.03,70011.0,69991.0,0.13106504]
[1773153306165,0.03,70011.0,69992.0,0.05962729]
[1773153306366,0.03,70011.0,69993.0,0.1414197]
[1773153306582,0.03,70011.0,69994.0,0.05962729]
[1773153307201,0.07141632,70012.0,69985.0,0.07164308]
[1773153307202,0.03,70009.0,69985.0,0.00168]
[1773153307415,0.03,70009.0,69981.0,0.00148]
[1773153307685,0.03,70009.0,69973.0,0.13108333]
[1773153307686,0.16316794,69991.0,69973.0,0.00148]
[1773153307889,0.16316794,69991.0,69969.0,1e-08]
[1773153307890,0.06529799,69988.0,69969.0,1e-08]
[1773153308228,0.06529799,69988.0,69955.0,0.07147435]
[1773153308229,0.03,69979.0,69948.0,0.07148132]
[1773153308455,0.00148,69978.0,69955.0,0.00148]
[1773153308652,0.00148,69978.0,69953.0,0.07147654]
[1773153308883,0.00148,69978.0,69956.0,0.00599601]
[1773153309525,0.00148,69978.0,69928.0,0.31982028]
[1773153309526,0.03,69969.0,69928.0,0.31982028]
[1773153309710,0.00148,69978.0,69928.0,0.07732164]
[1773153309712,0.03,69949.0,69928.0,0.07732164]
[1773153309913,0.03,69947.0,69928.0,0.07743451]
[1773153310105,0.03,69947.0,69928.0,0.00593287]
[1773153310288,0.00148,69946.0,69928.0,0.07743455]
[1773153310625,0.00148,69946.0,69925.0,0.00023]
[1773153310626,0.03,69939.0,69925.0,0.00023]
[1773153310885,0.03,69939.0,69925.0,0.00011276]
[1773153311049,0.00148,69938.0,69924.0,1e-08]
[1773153311291,0.0015926,69938.0,69914.0,0.0002]
[1773153311638,0.0015926,69938.0,69917.0,0.07171306]
[1773153311838,0.10160449,69938.0,69918.0,0.05962729]
[1773153312059,0.00148,69937.0,69918.0,0.05962729]
[1773153312429,0.00148,69937.0,69917.0,0.0002]
[1773153312996,0.00148,69937.0,69917.0,1e-08]
[1773153313198,0.03,69927.0,69917.0,1e-08]
[1773153313412,0.03148,69927.0,69917.0,1e-08]
[1773153313771,0.03,69925.0,69914.0,1e-08]
[1773153314190,0.00148,69929.0,69915.0,0.05962729]
[1773153314400,0.07149946,69931.0,69916.0,0.00148]
[1773153314614,0.07149946,69931.0,69917.0,0.05962729]
[1773153314950,0.07149614,69934.0,69917.0,0.05962729]
[1773153315300,0.07149614,69934.0,69925.0,0.0002]
[1773153315947,0.03,69933.0,69925.0,0.0002]
[1773153316772,0.07148795,69942.0,69926.0,0.05962729]
[1773153316947,0.00148,69940.0,69926.0,0.05962729]
[1773153317178,0.03,69939.0,69926.0,0.05962729]
[1773153317386,0.00023,69950.0,69926.0,0.05962729]
[1773153317607,0.00148,69946.0,69926.0,0.05973989]
[1773153317797,0.07171063,69950.0,69926.0,0.05973989]
[1773153318004,0.07171063,69950.0,69928.0,0.07150211]
[1773153318220,0.03148,69949.0,69926.0,0.07161471]
[1773153318463,0.03,69949.0,69926.0,0.07161471]
[1773153318674,0.03,69947.0,69927.0,0.06110729]
[1773153319534,0.03,69945.0,69928.0,0.00148]
[1773153319744,0.03,69943.0,69926.0,0.0001126]
[1773153319944,0.03,69943.0,69927.0,0.001]
[1773153319945,0.03,69941.0,69927.0,0.001]
[1773153320145,0.0714878,69942.0,69914.0,1e-08]
[1773153320146,0.03,69939.0,69914.0,1e-08]
[1773153320389,0.03,69929.0,69914.0,1e-08]
[1773153320976,0.00148,69928.0,69914.0,1e-08]
[1773153321329,0.03,69929.0,69914.0,0.0611073]
[1773153322084,0.03,69927.0,69915.0,0.07151541]
[1773153322287,0.01892691,69938.0,69915.0,0.07151541]
[1773153322494,0.01230335,69949.0,69921.0,0.05962729]
[1773153322663,0.00148,69948.0,69923.0,0.05962729]
[1773153322862,0.01082335,69949.0,69928.0,0.05962729]
[1773153323064,0.03,69948.0,69928.0,0.05962729]
[1773153323275,0.00023,69950.0,69929.0,0.00148]
[1773153323474,0.00023,69950.0,69932.0,0.05962729]
[1773153323830,0.00562,69956.0,69932.0,0.05962729]
[1773153323831,0.0164415,69956.0,69932.0,0.05962729]
[1773153324189,0.07146446,69965.0,69934.0,0.05962729]
[1773153324481,0.07145613,69973.0,69934.0,0.05962729]
[1773153324686,0.07168613,69975.0,69941.0,0.05962729]
[1773153324916,0.07168613,69975.0,69943.0,0.05962729]
[1773153324917,0.00148,69973.0,69943.0,0.05962729]
[1773153325226,0.00148,69973.0,69945.0,0.05962729]
[1773153325449,0.03,69969.0,69945.0,0.05962729]
[1773153325802,0.00148,69968.0,69947.0,0.05962729]
[1773153326065,0.00159285,69968.0,69949.0,0.05962729]
[1773153326273,0.03,69966.0,69950.0,0.07295962]
[1773153326682,0.03,69966.0,69951.0,0.00148]
[1773153327052,0.07146226,69967.0,69931.0,0.21291772]
[1773153327053,0.03,69960.0,69931.0,0.21291772]
[1773153327258,0.03,69958.0,69932.0,0.00148]
[1773153327424,0.03,69958.0,69933.0,0.05962729]
[1773153327771,0.00011285,69968.0,69933.0,0.05962729]
[1773153328225,0.03011285,69968.0,69936.0,0.05962729]
[1773153329247,0.001,69960.0,69936.0,0.05962729]
[1773153329448,0.03,69967.0,69936.0,0.05962729]
[1773153329628,0.03,69967.0,69936.0,0.06177349]
[1773153329830,0.03,69967.0,69936.0,0.06389444]
[1773153330038,0.03,69967.0,69936.0,0.06289444]
[1773153330236,0.10146226,69967.0,69938.0,0.05962729]
[1773153330579,0.03,69966.0,69940.0,0.05962729]
[1773153331321,0.03,69966.0,69941.0,0.00148]
[1773153331519,0.03,69965.0,69942.0,0.05962729]
[1773153332094,0.03148,69965.0,69943.0,0.00148]
[1773153332511,0.03,69963.0,69944.0,0.00148]
[1773153332658,0.03,69963.0,69945.0,0.05962729]
[1773153333451,0.00033286,69968.0,69945.0,0.05962729]
[1773153334167,0.03033286,69968.0,69945.0,0.05962729]
[1773153334394,0.10179419,69968.0,69946.0,0.07148371]
[1773153334588,0.10179419,69968.0,69947.0,0.05962729]
[1773153335002,0.03033286,69968.0,69947.0,0.05962729]
[1773153335177,0.03,69967.0,69947.0,0.05962729]
[1773153335585,0.03,69967.0,69948.0,0.00499635]
[1773153335807,0.03,69967.0,69949.0,0.05962729]
[1773153335988,0.03,69967.0,69951.0,0.05962729]
[1773153336188,0.03033286,69968.0,69951.0,0.05962729]
[1773153336389,0.03033286,69968.0,69953.0,0.05962729]
[1773153336778,0.00045001,69975.0,69953.0,0.05962729]
[1773153337001,0.00045001,69975.0,69953.0,0.05974014]
[1773153337259,0.03045001,69975.0,69953.0,0.06396942]
[1773153337463,0.0001755,69977.0,69953.0,0.06396942]
[1773153337680,0.07143635,69993.0,69960.0,0.16361856]
[1773153337853,0.07143875,69991.0,69962.0,0.05962729]
[1773153338030,0.07143955,69990.0,69962.0,0.05962729]
[1773153338242,0.07143875,69991.0,69962.0,0.05962729]
[1773153338243,0.10143997,69989.0,69962.0,0.05962729]
[1773153338619,0.10143997,69989.0,69964.0,0.05962729]
[1773153338822,0.00023,70000.0,69964.0,0.05962729]
[1773153339053,0.00023,70000.0,69963.0,0.07146634]
[1773153339054,0.00023,70000.0,69971.0,0.05962729]
[1773153339392,0.00023,70000.0,69973.0,0.05962729]
[1773153339595,0.03,69999.0,69973.0,0.05962729]
[1773153340479,0.00023,70000.0,69973.0,0.05962729]
[1773153340650,0.000525,70006.0,69972.0,0.00148]
[1773153340651,0.030525,70006.0,69983.0,0.05962729]
[1773153340857,0.030525,70006.0,69985.0,0.05962729]
[1773153341650,0.10194798,70006.0,69985.0,0.05962729]
[1773153341837,0.03,70005.0,69985.0,0.05962729]
[1773153342344,0.00090124,70006.0,69985.0,0.05962729]
[1773153342813,0.07232425,70006.0,69987.0,0.05962729]
[1773153343372,0.03090124,70006.0,69987.0,0.05962729]
[1773153344216,0.10232389,70006.0,69987.0,0.06062729]
[1773153344762,0.10232389,70006.0,69988.0,0.07144081]
[1773153345236,0.03,70005.0,69988.0,0.07144081]
[1773153345746,0.03,70005.0,69982.0,0.07144694]
[1773153346044,0.03,70005.0,69985.0,0.00148]
[1773153346402,0.00148,70004.0,69985.0,0.00148]
[1773153347026,0.03,70003.0,69986.0,0.07144286]
[1773153347202,0.03148,70003.0,69986.0,0.07144286]
[1773153348519,0.16361856,70000.0,69984.0,0.00148]
[1773153348748,0.03,69999.0,69981.0,0.00148]
[1773153349104,0.03,69997.0,69981.0,0.07292781]
[1773153349751,0.03,69997.0,69981.0,0.00148]
[1773153349752,0.03148,69997.0,69981.0,0.00148]
[1773153349953,0.03,69990.0,69975.0,0.00023]
[1773153350153,0.03,69988.0,69975.0,0.00148]
[1773153350382,0.03,69988.0,69972.0,0.07145706]
[1773153350586,0.03,69988.0,69971.0,0.07145767]
[1773153350749,0.03,69988.0,69964.0,0.0714643]
[1773153350948,0.03,69986.0,69966.0,0.07146328]
[1773153351200,0.03,69986.0,69967.0,0.00148]
[1773153351573,0.03,69986.0,69934.0,0.34317671]
[1773153351801,0.03,69986.0,69958.0,0.07147125]
[1773153351998,0.03,69986.0,69957.0,0.07295247]
[1773153351999,0.03,69979.0,69957.0,0.07295247]
[1773153352202,0.00148,69978.0,69957.0,0.07295247]
[1773153352760,0.00148,69977.0,69956.0,0.07709247]
[1773153352980,0.07145306,69976.0,69956.0,0.00562]
[1773153353200,0.03,69975.0,69956.0,0.00573285]
[1773153353613,0.03,69975.0,69954.0,0.00148]
[1773153353822,0.03011278,69975.0,69954.0,0.00148]
[1773153354024,0.03011278,69975.0,69952.0,0.00148]
[1773153354965,0.03,69973.0,69953.0,0.07147656]
[1773153355576,0.00148,69972.0,69954.0,0.00745456]
[1773153355798,0.00148,69971.0,69955.0,0.05962729]
[1773153356276,0.03,69973.0,69956.0,0.00754061]
[1773153356439,0.00148,69972.0,69956.0,0.00754061]
[1773153356590,0.03,69973.0,69956.0,0.00754061]
[1773153356791,0.00148,69972.0,69956.0,0.00754061]
[1773153357005,0.03,69970.0,69957.0,0.07147247]
[1773153357208,0.03,69970.0,69958.0,0.00148]
[1773153358455,0.03,69969.0,69959.0,0.05962729]
[1773153359032,0.03,69969.0,69960.0,0.07146941]
[1773153359390,0.07145083,69979.0,69960.0,0.07146941]
[1773153359391,0.03148,69982.0,69963.0,0.05962729]
[1773153359590,0.03148,69982.0,69965.0,0.05962729]
[1773153359870,0.03,69982.0,69965.0,0.05962729]
[1773153360303,0.03,69982.0,69967.0,0.05962729]
[1773153360435,0.03,69981.0,69969.0,0.05962729]
[1773153361158,0.10144805,69981.0,69970.0,0.07145919]
[1773153361362,0.10144805,69981.0,69971.0,0.00148]
[1773153361712,0.10144805,69981.0,69969.0,0.00148]
[1773153362517,0.03,69980.0,69970.0,0.05962729]
[1773153362845,0.03,69980.0,69969.0,0.00148]
[1773153363395,0.03,69979.0,69970.0,0.07145919]
[1773153364553,0.03,69978.0,69970.0,0.07145919]
[1773153365019,0.03,69978.0,69971.0,0.05962729]
[1773153365223,0.03,69978.0,69972.0,0.07145715]
[1773153365423,0.03,69981.0,69972.0,0.07145715]
[1773153365674,0.07144898,69980.0,69972.0,0.07145715]
[1773153365913,0.00562,69984.0,69972.0,0.07145715]
[1773153366114,0.07143509,69994.0,69973.0,0.05962729]
[1773153366301,0.07143431,69995.0,69973.0,0.05962729]
[1773153366663,0.03,69994.0,69973.0,0.05962729]
[1773153367261,0.03,69994.0,69975.0,0.05962729]
[1773153367262,0.03,69992.0,69975.0,0.05962729]
[1773153367466,0.00023,70000.0,69980.0,0.16361856]
[1773153367675,0.00023,70000.0,69976.0,0.00148]
[1773153367676,0.00023,70000.0,69977.0,0.05962729]
[1773153367930,0.07216819,70006.0,69977.0,0.05962729]
[1773153368345,0.03,70005.0,69977.0,0.05962729]
[1773153369181,0.03,70005.0,69977.0,0.06062729]
[1773153369422,0.03,70004.0,69979.0,0.05962729]
[1773153369882,0.03,70004.0,69981.0,0.05962729]
[1773153370429,0.03,70003.0,69981.0,0.05962729]
[1773153371056,0.03,70003.0,69982.0,0.00148]
[1773153371259,0.03,70003.0,69984.0,0.0714449]
[1773153371476,0.00074501,70006.0,69985.0,0.05962729]
[1773153372366,0.00562,70012.0,69992.0,0.05962729]
[1773153372586,0.00572207,70012.0,69994.0,0.05962729]
[1773153372784,0.00022001,70015.0,69994.0,0.05962729]
[1773153373018,0.00022001,70015.0,69994.0,0.06000353]
[1773153373316,0.00022001,70015.0,69995.0,0.07143367]
[1773153373474,0.03,70020.0,69996.0,0.05962729]
[1773153374240,0.04941792,70019.0,69995.0,0.07143367]
[1773153374377,0.03148,70018.0,69997.0,0.00148]
[1773153374575,0.03,70018.0,69999.0,0.05962729]
[1773153374786,0.00148,70017.0,69999.0,0.05792731]
[1773153375401,0.03,70015.0,70000.0,0.07142857]
[1773153375664,0.00022001,70006.0,70000.0,0.07142857]
[1773153376009,0.03,70015.0,70001.0,0.0587773]
[1773153376207,0.00022001,70014.0,70001.0,0.0587773]
[1773153376437,0.03022001,70014.0,70001.0,0.0587773]
[1773153376840,0.03022001,70014.0,70002.0,0.00148]
[1773153377160,0.03022001,70014.0,70003.0,0.0587773]
[1773153377565,0.03,70012.0,70002.0,0.00148]
[1773153377763,0.03,70012.0,69998.0,0.00148]
[1773153378267,0.03,70012.0,69994.0,0.07180993]
[1773153378774,0.0302095,70012.0,69995.0,0.00148]
[1773153378932,0.0302095,70012.0,69994.0,0.07180993]
[1773153379134,0.0302095,70012.0,69996.0,0.0587773]
[1773153379339,0.0316895,70012.0,69996.0,0.0587773]
[1773153379544,0.03,70010.0,69997.0,0.07143163]
[1773153381431,0.0002095,70011.0,69997.0,0.07143163]
[1773153381633,0.07141836,70010.0,69997.0,0.07143163]
[1773153381835,0.07163467,70014.0,69998.0,0.06920469]
[1773153382028,0.07163467,70014.0,69996.0,0.07143205]
[1773153382222,0.07163433,70014.0,69999.0,0.00148]
[1773153382409,0.03022001,70014.0,70000.0,0.0587773]
[1773153382613,0.03022001,70014.0,70000.0,0.06395085]
[1773153382855,0.1016343,70014.0,70000.0,0.06395085]
[1773153383029,0.1016343,70014.0,70000.0,0.0587773]
[1773153383347,0.00022001,70012.0,70000.0,0.0587773]
[1773153383590,0.07141122,70017.0,70003.0,0.07142551]
[1773153383729,0.07140868,70020.0,70004.0,0.0587773]
[1773153383730,0.07162841,70020.0,70004.0,0.0587773]
[1773153383937,0.00148,70031.0,70004.0,0.0587773]
[1773153383938,0.00022001,70027.0,70004.0,0.0587773]
[1773153384337,0.00022001,70027.0,70011.0,0.0587773]
[1773153384538,0.00022001,70027.0,70013.0,0.05484325]
[1773153384753,0.00022001,70027.0,70015.0,0.05480457]
[1773153384909,0.00022001,70027.0,70017.0,0.05480457]
[1773153385112,0.0004019,70033.0,70019.0,0.05256008]
[1773153385330,0.0004019,70033.0,70020.0,0.05404008]
[1773153385562,0.07179696,70033.0,70022.0,0.07140612]
[1773153385915,0.07179696,70033.0,70018.0,0.07140981]
[1773153385916,0.07179696,70033.0,70005.0,0.07142346]
[1773153386114,0.07179696,70033.0,70008.0,0.04023024]
[1773153386341,0.07179696,70033.0,70009.0,0.04023024]
[1773153386519,0.00148,70032.0,70010.0,0.00148]
[1773153386730,0.00148,70032.0,70011.0,0.00148]
[1773153386979,0.00148,70032.0,70005.0,0.0717997]
[1773153387192,0.00148,70032.0,70006.0,0.00148]
[1773153387363,0.00148,70032.0,70007.0,0.00148]
[1773153387773,0.1633236,70030.0,70005.0,0.00037624]
[1773153387975,0.1633236,70030.0,70005.0,0.0717996]
[1773153388179,0.1633236,70030.0,70006.0,0.00148]
[1773153388380,0.07139695,70031.0,70006.0,0.00148]
[1773153388771,0.001,70030.0,70006.0,0.00148]
[1773153389190,0.07139695,70031.0,70005.0,0.00148]
[1773153389598,0.1633236,70030.0,70002.0,0.00148]
[1773153389818,0.07139899,70029.0,70002.0,0.00185635]
[1773153390379,0.2123084,70029.0,70002.0,0.00185635]
[1773153391292,0.1633236,70020.0,69995.0,0.0002]
[1773153391533,0.04435123,70019.0,69995.0,0.00057668]
[1773153392004,0.04435123,70019.0,69988.0,0.00667578]
[1773153392005,0.0714102,70018.0,69988.0,0.0002]
[1773153392153,0.0714102,70018.0,69989.0,0.00148]
[1773153392506,0.1633236,70010.0,69988.0,0.00057726]
[1773153392710,0.1633236,70010.0,69989.0,0.00148]
[1773153393121,0.00148,70009.0,69988.0,0.00057726]
[1773153393322,0.00148,70009.0,69957.0,0.03605785]
[1773153393323,0.00148,70009.0,69975.0,0.0716833]
[1773153393324,0.1633236,70000.0,69975.0,0.0716833]
[1773153393527,0.1633236,70000.0,69975.0,0.0735408]
[1773153393825,0.03148,69999.0,69975.0,0.0735408]
[1773153394079,0.03,69997.0,69975.0,0.0735408]
[1773153394476,0.03,69997.0,69975.0,0.0020875]
[1773153394686,0.03,69997.0,69976.0,0.00148]
[1773153394901,0.03,69997.0,69973.0,0.00148]
[1773153395124,0.07143061,69998.0,69971.0,0.00148]
[1773153395125,0.03,69989.0,69971.0,0.00148]
[1773153395351,0.03,69989.0,69968.0,0.00148]
[1773153395352,0.00148,69988.0,69968.0,0.00148]
[1773153396201,0.03,69986.0,69968.0,0.00148]
[1773153396415,0.03,69979.0,69963.0,0.00168]
[1773153396601,0.00148,69978.0,69956.0,0.00582]
[1773153396877,0.00148,69978.0,69958.0,0.00148]
[1773153397544,0.03148,69978.0,69958.0,0.00148]
[1773153398231,0.03,69976.0,69958.0,0.07295122]
[1773153398413,0.03,69976.0,69959.0,0.04023024]
[1773153399278,0.07145204,69980.0,69958.0,0.07755292]
[1773153399279,0.00037688,69989.0,69962.0,0.04023024]
[1773153399479,0.07142959,69999.0,69971.0,0.04023024]
[1773153399684,0.07142959,69999.0,69973.0,0.04023024]
[1773153399899,0.07142959,69999.0,69976.0,0.04023024]
[1773153400107,0.07142959,69999.0,69975.0,0.0002]
[1773153400322,0.03,69998.0,69976.0,0.00148]
[1773153400529,0.03,69998.0,69975.0,0.0002]
[1773153400701,0.03,69989.0,69971.0,0.00037688]
[1773153400940,0.00148,69988.0,69972.0,0.00148]
[1773153401376,0.07142959,69999.0,69973.0,0.04023024]
[1773153401576,0.00148,69996.0,69973.0,0.04023024]
[1773153401991,0.00148,69996.0,69972.0,0.00148]
[1773153401992,0.03,69998.0,69975.0,0.04023024]
[1773153402197,0.03,69998.0,69978.0,0.07145102]
[1773153402198,0.10143099,69998.0,69978.0,0.07145102]
[1773153402400,0.10143099,69998.0,69979.0,0.04307991]
[1773153402815,0.03,70001.0,69981.0,0.04023024]
[1773153403018,0.07141914,70010.0,69983.0,0.04023024]
[1773153403435,0.07141914,70010.0,69983.0,0.04482276]
[1773153403859,0.03,70009.0,69983.0,0.04482276]
[1773153404273,0.03,70007.0,69984.0,0.0729249]
[1773153404480,0.00148,70006.0,69984.0,0.0714449]
[1773153404693,0.00148,70006.0,69985.0,0.00148]
[1773153405104,0.03,69999.0,69979.0,0.00148]
[1773153405306,0.00148,69998.0,69979.0,0.00148]
[1773153405717,0.00148,69998.0,69975.0,0.07168306]
[1773153405924,0.00148,69998.0,69976.0,0.00148]
[1773153406124,0.00148,69998.0,69975.0,0.07168306]
[1773153406341,0.03,69996.0,69977.0,0.00148]
[1773153407017,0.03,69996.0,69979.0,0.04023024]
[1773153407877,0.00148,69995.0,69979.0,0.04023024]
[1773153408272,0.03,69993.0,69979.0,0.04023024]
[1773153409381,0.03,69993.0,69980.0,0.04023024]
[1773153410037,0.03,69993.0,69975.0,0.00023]
[1773153410253,0.03,69989.0,69971.0,0.00037688]
[1773153410459,0.03,69987.0,69971.0,0.00037688]
[1773153411080,0.03,69987.0,69971.0,0.07183502]
[1773153411514,0.03,69987.0,69971.0,0.00037688]
[1773153412324,0.07144286,69986.0,69971.0,0.00037688]
[1773153412471,0.03,69985.0,69971.0,0.00037688]
[1773153412876,0.03,69985.0,69970.0,0.00148]
[1773153413086,0.03,69979.0,69962.0,0.00148]
[1773153413269,0.00148,69978.0,69961.0,0.0731478]
[1773153413890,0.00148,69978.0,69961.0,0.0716678]
[1773153414090,0.00148,69978.0,69957.0,0.00148]
[1773153414257,0.03,69967.0,69955.0,0.07335634]
[1773153414463,0.00148,69977.0,69956.0,0.04023024]
[1773153414922,0.0770649,69984.0,69956.0,0.04023024]
[1773153414923,0.00148,69979.0,69956.0,0.04023024]
[1773153415134,0.00148,69978.0,69956.0,0.04023024]
[1773153415338,0.0770649,69984.0,69956.0,0.04023024]
[1773153415629,0.03148,69983.0,69955.0,0.07335634]
[1773153416010,0.03472763,69980.0,69955.0,0.07187634]
[1773153416190,0.03,69975.0,69956.0,0.00290946]
[1773153416372,0.06472763,69973.0,69957.0,0.07147247]
[1773153416576,0.03,69971.0,69958.0,0.00148]
[1773153416821,0.03,69969.0,69958.0,0.00148]